[Event "24th European Women-ch 2024"]
[Site "Rhodes"]
[Date "2024.04.20"]
[Round "2.17"]
[White "Vega Gutierrez, Sabrina"]
[Black "Borosova, Zuzana"]
[Result "1/2-1/2"]
[ECO "B12"]
[WhiteElo "2383"]
[BlackElo "2225"]
[Annotator "TA"]
[PlyCount "135"]
[EventDate "2024.04.18"]
[EventType "swiss"]
[EventCountry "GRE"]
[SourceTitle "playchess.com"]
[Source "ChessBase"]
[SourceQuality "1"]
[TimeControl "40/5400+30:1800+30"]

{[%evp 33,135,143,108,118,186,113,129,107,147,132,150,25,0,0,0,16,0,-8,0,-34,0,-14,10,0,0,0,0,-14,10,0,0,-30,-26,-55,-53,-51,0,0,0,-27,-52,-44,0,-36,0,0,0,0,0,0,0,0,0,0,12,19,15,18,23,20,25,3,8,8,8,0,0,0,0,0,0,0,0,0,0,0,0,0,0,0,0,0,0,0,0,-24,0,0,0,0,0,-12,-16,-25,0,-8,-8,-71,0,0,0,0,0,0]} 1. e4 {[%emt 0:00:04]} c6 {[%emt 0:01:08]} 2. d4 {[%emt 0:00:13]} d5 {[%emt 0:00:23]} 3. e5 {[%emt 0:00:19]} Bf5 {[%emt 0:00:24]} 4. Nf3 {[%emt 0:01:03]} e6 {[%emt 0:00:41]} 5. c3 {[%emt 0:00:29]} Nd7 {[%emt 0:05:28]} 6. Be2 {[%emt 1:31:22] B12: Caro-Kann: Advance Variation.} a5 $1 {[%emt 0:07:25][%mdl 4] now scores much better than the old 6...Ne7.} 7. Nbd2 {[%emt 0:00:30]} h6 $146 {[%emt 1:18:31]} ({Predecessor:} 7... a4 8. Nf1 h6 9. Ne3 Bh7 10. O-O Ne7 11. Bd2 Nf5 12. b3 Be7 13. c4 O-O {½-½ Bartel,M (2651)-Maghsoodloo,P (2707) FIDE Grand Swiss 2023 (6)}) 8. Nf1 {[%emt 0:00:30]} Qc7 {[%emt 0:00:00]} 9. Ne3 {[%emt 0:00:30]} Bh7 {[%emt 0:00:00]} 10. O-O Ne7 {[%emt 0:01:30]} 11. Bd3 {[%emt 0:00:00]} Bxd3 {[%emt 0:00:00]} 12. Qxd3 {[%emt 0:00:00]} f6 {[%emt 0:01:00]} 13. exf6 {[%emt 0:00:00]} gxf6 {[%emt 0:00:00]} 14. c4 {[%emt 0:02:30]} Kf7 {[%emt 0:01:00]} 15. cxd5 {[%emt 0:00:30]} cxd5 {[%emt 0:00:00]} 16. Nh4 {[%emt 0:00:30]} Rg8 {[%emt 0:01:00]} 17. Qe2 {[%emt 0:00:30]} f5 {[%emt 0:00:30]} 18. Re1 {[%emt 0:00:00]} Ra6 {[%emt 0:00:30] [#]} (18... Nf6 $16) 19. Bd2 {[%emt 0:01:00]} (19. Qh5+ Ng6 20. Nxg6 Rxg6 $16) (19. g3 $1 $18) 19... Nf6 $16 {[%emt 0:00:30]} 20. Rac1 {[%emt 0:00:00]} Qd6 {[%emt 0:00:30]} 21. Nf3 {[%emt 0:00:00]} Ng6 {[%emt 0:00:00] [#]} 22. Ne5+ {[%emt 0:00:00]} (22. g3 $1 $16 {[%mdl 512]}) 22... Nxe5 $11 {[%emt 0:01:00]} 23. dxe5 {[%emt 0:00:00]} Qxe5 {[%emt 0:00:00]} 24. Qb5 {[%emt 0:00:00]} Qb8 {[%emt 0:00:22]} 25. Nf1 {[%emt 0:00:00]} Bd6 {[%emt 0:00:31]} 26. Bc3 {[%emt 0:00:00]} Rd8 {[%emt 0:00:02]} 27. Qe2 {[%emt 0:00:35]} Bf4 {[%emt 0:00:31]} 28. Bxf6 {[%emt 0:00:48]} Kxf6 {[%emt 0:00:08]} 29. Rc3 {[%emt 0:00:53]} Rg8 {[%emt 0:01:10]} 30. g3 {[%emt 0:00:59]} Qe8 {[%emt 0:00:40]} 31. Rf3 {[%emt 0:00:54]} Bb8 {[%emt 0:00:17]} 32. Ne3 {[%emt 0:00:34]} Qd7 {[%emt 0:00:40]} 33. Qd2 {[%emt 0:00:40]} Kg6 {[%emt 0:00:13]} 34. Nc2 {[%emt 0:01:23]} Rc8 {[%emt 0:00:26]} ({Better is} 34... Rf8 $15) 35. Nd4 $11 {[%emt 0:01:14]} Ba7 {[%emt 0:00:16]} 36. Rfe3 {[%emt 0:00:00]} Bxd4 {[%emt 0:00:29]} 37. Qxd4 {[%emt 0:00:00]} Rac6 {[%emt 0:00:46]} 38. Kg2 {[%emt 0:00:14]} Kf7 {[%emt 0:00:52]} 39. Qh4 {[%emt 0:00:46]} Kg7 {[%emt 0:00:33]} 40. g4 {[%emt 0:00:00]} fxg4 {[%emt 0:00:00]} 41. Qxg4+ {[%emt 0:10:47]} Kh7 {[%emt 0:16:33]} 42. Rxe6 {[%emt 0:01:44]} Rxe6 {[%emt 0:00:18]} 43. Qxe6 {[%emt 0:03:37]} Rg8+ {[%emt 0:11:14]} 44. Kf1 {[%emt 0:01:08]} Qb5+ {[%emt 0:00:33]} (44... Qxe6 {simplifies} 45. Rxe6 Rg6 46. Re7+ Rg7) 45. Qe2 {[%emt 0:01:18]} Qxe2+ {[%emt 0:01:59]} 46. Rxe2 {[%emt 0:00:20]} Kg6 {[%emt 0:00:34]} 47. Re6+ {[%emt 0:10:59]} Kf5 $1 {[%emt 0:00:03]} 48. Rxh6 {[%emt 0:00:11]} Rc8 {[%emt 0:02:23]} 49. Rb6 {[%emt 0:00:03]} Ke4 {[%emt 0:00:28]} 50. h4 {[%emt 0:01:31]} Kd3 {[%emt 0:01:59]} 51. Rxb7 {[%emt 0:05:22]} d4 {[%emt 0:00:00]} 52. Rd7 Rh8 {[%emt 0:01:00]} 53. Rd5 {[%emt 0:01:00]} Rxh4 {[%emt 0:00:00]} 54. Rxa5 {[%emt 0:00:00]} Rh1+ {[%emt 0:01:00]} 55. Kg2 {[%emt 0:01:00]} Rb1 {[%emt 0:00:30]} 56. Rb5 {[%emt 0:00:30]} Ke2 {[%emt 0:00:00]} ({Don't play} 56... Kc2 57. Rc5+ Kxb2 58. Rb5+ Kc2 59. Rc5+ Kd2 60. a4 $17) 57. Re5+ {[%emt 0:00:00]} Kd2 {[%emt 0:01:00]} 58. Kf3 {[%emt 0:00:27]} d3 {[%emt 0:00:30]} 59. Rb5 {[%emt 0:01:03]} Ke1 {[%emt 0:00:00]} 60. Ke3 {[%emt 0:00:00]} d2 {[%emt 0:00:00]} 61. Rh5 {[%emt 0:00:00]} d1=N+ {[%emt 0:01:30]} 62. Kd4 {[%emt 0:01:30]} Rxb2 {[%emt 0:00:00]} 63. f4 {[%emt 0:00:30]} Rxa2 {[%emt 0:00:17]} 64. f5 {[%emt 0:00:00]} Ra4+ {[%emt 0:01:13]} (64... Ra5 $5) 65. Kd3 {[%emt 0:01:00]} (65. Ke5 $11 {remains equal.}) 65... Rf4 {[%emt 0:00:00]} ({Black should try} 65... Kf2 $17) 66. Rh1+ $11 {[%emt 0:00:00]} Kf2 {[%emt 0:00:00]} 67. Rxd1 {[%emt 0:00:00]} Rxf5 {[%emt 0:00:00]} 68. Ke4 {[%emt 0:00:21]} 1/2-1/2

[Event "24th European Women-ch 2024"]
[Site "Rhodes"]
[Date "2024.04.19"]
[Round "1.7"]
[White "Manakova, Maria"]
[Black "Batsiashvili, Nino"]
[Result "1-0"]
[ECO "C54"]
[WhiteElo "2148"]
[BlackElo "2445"]
[Annotator "TA"]
[PlyCount "93"]
[EventDate "2024.04.18"]
[EventType "swiss"]
[EventCountry "GRE"]
[SourceTitle "playchess.com"]
[Source "ChessBase"]
[SourceQuality "1"]
[TimeControl "40/5400+30:1800+30"]

{[%evp 26,93,62,39,62,63,59,-2,75,16,23,34,29,13,10,0,0,6,39,0,59,54,59,59,83,60,266,179,214,217,199,193,204,-33,-37,-42,-52,-71,-78,-96,-95,-137,-147,-139,-128,-117,25,23,23,29,11,21,35,0,112,0,79,84,103,0,1017,843,1227,1127,1099,1085,29983,29970,5377,5277]} 1. e4 {[%emt 0:00:03]} e5 {[%emt 0:00:04]} 2. Nf3 {[%emt 0:00:03]} Nc6 {[%emt 0:00:04]} 3. Bc4 {[%emt 0:00:08]} Nf6 {[%emt 0:00:07]} 4. d3 {[%emt 0:00:04]} Bc5 {[%emt 0:00:06]} 5. O-O {[%emt 0:00:31]} d6 {[%emt 0:00:30]} 6. c3 {[%emt 0:00:04]} a6 {[%emt 0:01:24]} 7. Bb3 {[%emt 0:00:05]} Ba7 {[%emt 0:00:48]} 8. Re1 $1 {[%emt 0:00:26][%mdl 4] now scores much better than the old 8.Nbd2.} h6 {[%emt 0:00:12] C54: Giuoco Piano: 4 c3 Nf6, main lines with 5 d4 and 5 d3.} 9. Be3 {[%emt 0:02:42]} Bxe3 {[%emt 0:05:20]} 10. Rxe3 {[%emt 0:01:53]} g5 $146 {[%emt 0:08:23]} ({Predecessor:} 10... O-O 11. Nbd2 d5 12. h3 Be6 13. Nxe5 Nxe5 14. exd5 Neg4 15. hxg4 Bxg4 16. f3 Bf5 {1-0 Aronian,L (2742)-Shankland,S (2698) USA-ch Saint Louis 2023 (10)}) 11. d4 {[%emt 0:03:51]} Qe7 {[%emt 0:01:08]} 12. Nbd2 {[%emt 0:05:33]} Bd7 {[%emt 0:03:06]} 13. d5 {[%emt 0:02:04]} Nb8 {[%emt 0:01:23]} 14. c4 {[%emt 0:01:57]} O-O {[%emt 0:22:01]} 15. h3 {[%emt 0:04:34]} g4 {[%emt 0:06:05]} 16. Nh4 {[%emt 0:06:22]} (16. hxg4 $14 Nxg4 17. Re2) 16... h5 {[%emt 0:02:42]} (16... gxh3 $11 17. Rg3+ (17. gxh3 Kh7 $11) 17... Kh8) 17. Nf5 {[%emt 0:03:55]} (17. g3 $16) 17... Bxf5 $11 {[%emt 0:00:05]} 18. exf5 {[%emt 0:00:02]} Nbd7 {[%emt 0:00:55]} 19. Nf1 {[%emt 0:02:06]} Kg7 {[%emt 0:03:25]} 20. Rc1 {[%emt 0:19:42]} Rh8 {[%emt 0:01:06]} 21. Rcc3 {[%emt 0:00:40]} Rag8 {[%emt 0:02:17]} 22. h4 {[%emt 0:02:17]} Nh7 {[%emt 0:10:38]} (22... Rb8 $11) 23. Ba4 $14 {[%emt 0:05:29]} Nc5 {[%emt 0:01:33]} 24. f6+ $1 {[%emt 0:09:31]} Qxf6 {[%emt 0:02:55]} 25. Ng3 {[%emt 0:00:09]} Kf8 $2 {[%emt 0:02:04]} (25... Qxh4 $2 26. Nf5+ Kf8 27. Nxh4 $18) (25... Nf8 $14) 26. Bc2 {[%emt 0:00:30]} Qxh4 {[%emt 0:04:06]} 27. b4 {[%emt 0:00:23]} Nd7 {[%emt 0:00:10]} 28. c5 {[%emt 0:00:10]} Qd8 {[%emt 0:01:03]} 29. c6 $2 {[%emt 0:02:36]} ({White has to play} 29. Bxh7 $18 Rxh7 30. cxd6 cxd6 31. Qc2) 29... bxc6 $15 {[%emt 0:03:08]} (29... h4 30. Nf5 bxc6 31. dxc6 $11) 30. dxc6 {[%emt 0:00:04]} Nb6 {[%emt 0:00:46]} 31. Bxh7 {[%emt 0:07:21]} (31. Nxh5 $2 Qh4 (31... Nf6 $2 32. Ng3 $19) 32. Ng3 Nf6 $19) (31. Rxe5 Qf6 32. Ree3 (32. Nxh5 $2 Qxe5 33. Ng3 Qxc3 $19) 32... Ng5 $11) 31... Rxh7 {[%emt 0:00:09]} 32. Qd3 {[%emt 0:00:24]} Kg7 {[%emt 0:02:14]} 33. Ra3 {[%emt 0:09:50]} Kh8 {[%emt 0:02:33]} 34. Rxa6 {[%emt 0:01:23]} h4 {[%emt 0:00:53]} 35. Nf5 {[%emt 0:00:50] [#]} Rh5 {[%emt 0:00:15]} (35... Qf6 $1 $17 {...d5 would now be deadly.} 36. Re1 (36. Nxd6 $2 cxd6 37. Rxb6 h3 $19) 36... d5) 36. Rxb6 $1 $11 {[%emt 0:01:31]} cxb6 {[%emt 0:00:03]} 37. Nxd6 {[%emt 0:00:11]} Qe7 {[%emt 0:01:23]} 38. Qd5 {[%emt 0:02:37]} Kg7 {[%emt 0:01:57]} 39. Rd3 {[%emt 0:04:48]} h3 {[%emt 0:03:44]} (39... Rd8 $11 {keeps the balance.}) 40. Qc4 {[%emt 0:00:00]} (40. gxh3 $16 gxh3 41. Rg3+ Kf8 42. Kh2 Rxg3 43. fxg3) 40... h2+ {[%emt 0:00:00]} (40... e4 $1 $11 41. Rd5 Rxd5 42. Qxd5 Qf6) 41. Kh1 $16 {[%emt 0:01:28]} e4 {[%emt 0:12:26] [#]} 42. Rd5 {[%emt 0:12:24]} (42. Rd4 $1 $16 {[%cal Oc6c7] Strongly threatening c7!} Qf6 43. c7 (43. Nxe4 Qe5 $16)) 42... Rd8 $2 {[%emt 0:06:48][%mdl 8192]} (42... Rxd5 $11 43. Qxd5 Qf6 44. Nxe4 Qf4) 43. Qd4+ $18 {[%emt 0:10:28]} (43. Rxh5 Qxd6 44. Qb5 (44. Qxe4 $2 Qd1+ 45. Kxh2 g3+ 46. Kxg3 Qxh5 $19) 44... Qf6 45. Qg5+ (45. Kxh2 Qf4+ 46. Kg1 Rd1+) (45. Qxb6 Rd1+ 46. Kxh2 Qf4+ 47. g3 Qf3 48. Rg5+ Kh6 49. c7+ f6) 45... Qxg5 46. Rxg5+ Kf6 47. Rxg4 Ke5 $18) 43... Kg6 {[%emt 0:04:37]} 44. Nf5 $1 {[%emt 0:00:22]} (44. Qxe4+ {leads to mate.} Qxe4) (44. c7 Qxc7 45. Qxe4+ f5 $17) 44... Rxf5 {[%emt 0:06:55]} 45. Rxd8 {[%emt 0:00:04]} Rb5 {[%emt 0:03:41]} 46. Rg8+ {[%emt 0:01:01]} Kf5 {[%emt 0:00:33]} 47. Qd7+ {[%emt 0:00:18]} (47. Kxh2 Qc7+ 48. g3 Qxc6 $18) 1-0